Cogmind - Beta 13 X1 @@@ ROGUE MODE // 2023.09.03 @ 19:03:45 Player: Jezoensis Result: Destroyed by P-60 Hacker with Shock Rifle Performance ------------- Evolutions (2) 1000 Regions Visited (10) 2000 Robots Destroyed (127) 635 Value Destroyed (3791) 3791 Prototype IDs (4) 80 Alien Tech Used (0) 0 Bonus (1849) 1849 TOTAL SCORE: 9355 Bonus ------- High Alert Combat Kills 956 Follower Combat Kills 130 Entered Garrisons 400 Used RIF Installer 500 Friendly Fire -137 Cogmind --------- Core Integrity 0/550 Matter 121/300 Energy 100/100 System Corruption 39% Temperature Cool (0) Movement Treading (240) Ox1 Location -8/Garrison Parts ------- > --- POWER (1) -------- (None) > --- PROPULSION (3) --- Light Treads Light Treads > --- UTILITY (5) ------ High-capacity Storage Unit Improved Signal Interpreter Light Armor Plating Relay Coupler [Grunt] (6) > --- WEAPON (2) ------- Gauss Rifle Gauss Rifle > --- INVENTORY (20) --- Light Treads Large Storage Unit High-capacity Matter Pod (0) Visual Processing Unit Improved Sensor Array Improved Sensor Array Improved Signal Interpreter Active Sensor Suite Improved Terrain Scan Processor Seismic Detector Long-range Tractor Beam Gauss Rifle Magnetic Acceleration Cannon Magnetic Acceleration Cannon Magnetic Acceleration Cannon Advanced EMP Blaster Remote Datajack Heavy Flail Peak State ------------ > --- POWER ------------ Improved Deuterium Engine > --- PROPULSION ------- Armored Treads Armored Huge Wheel > --- UTILITY ---------- High-capacity Storage Unit Advanced Visual Processing Unit Advanced Targeting Computer Improved Light Armor Plating Long-range Tractor Beam > --- WEAPON ----------- Gauss Rifle Gauss Rifle > --- INVENTORY -------- Reinforced Deuterium Engine Large Storage Unit High-capacity Matter Pod Structural Scanner Improved Sensor Array Improved Sensor Array Improved Signal Interpreter Active Sensor Suite Improved Terrain Scan Processor Seismic Detector Gauss Rifle Gauss Rifle Assault Cannon Assault Cannon Flak Cannon Advanced EMP Blaster Grenade Launcher Heavy Flail [Rating: 43] Favorites ----------- Power Improved Ion Engine Engine Improved Ion Engine Power Core Light Nuclear Core Propulsion Wheel Treads Light Treads Leg Flexi-carbon Leg Wheel Wheel Utility High-capacity Storage Unit Device Seismic Detector Storage High-capacity Storage Unit Processor Advanced Visual Processing Unit Hackware Relay Coupler [Grunt] Protection Improved Light Armor Plating Weapon Gauss Rifle Energy Gun Improved Medium Laser Ballistic Gun Gauss Rifle Ballistic Cannon Flak Cannon Launcher Advanced EMP Blaster Special Weapon Remote Datajack Impact Weapon Heavy Flail Build | -11 -10 -10 -9 -9 -9 -8 -8 -8 -8 -8 ------- Run | Jun Mat Min Mat Min Exi Min Mat Gar Mat Gar Slots Evolved 4 | . . . 2 . . . 2 . . . Power . | . . . . . . . . . . . Propulsion 1 | . . . 1 . . . . . . . Utility 3 | . . . 1 . . . 2 . . . Weapon . | . . . . . . . . . . . Parts Attached 184 | 8 10 20 26 2 3 6 55 40 8 6 Power 9 | 1 . 1 2 . . . 2 3 . . Engine 8 | 1 . . 2 . . . 2 3 . . Core 1 | . . 1 . . . . . . . . Reactor . | . . . . . . . . . . . Propulsion 45 | 4 5 14 7 1 . . 9 5 . . Treads 16 | . 2 4 2 . . . 4 4 . . Leg 4 | . . 2 2 . . . . . . . Wheel 25 | 4 3 8 3 1 . . 5 1 . . Hover . | . . . . . . . . . . . Flight . | . . . . . . . . . . . Utility 64 | 1 2 1 10 . 1 2 28 12 4 3 Device 42 | . 2 1 8 . . 2 21 5 2 1 Storage 3 | 1 . . 1 . 1 . . . . . Processor 5 | . . . 1 . . . 3 1 . . Hackware 1 | . . . . . . . . . 1 . Protection 13 | . . . . . . . 4 6 1 2 Artifact . | . . . . . . . . . . . Weapon 66 | 2 3 4 7 1 2 4 16 20 4 3 Energy Gun 14 | . . 2 4 . 1 1 6 . . . Energy Cannon . | . . . . . . . . . . . Ballistic Gun 25 | 2 2 1 2 1 1 1 7 5 2 1 Ballistic Cannon 6 | . . . . . . . . 6 . . Launcher 9 | . . . . . . 2 2 4 . 1 Special Weapon 4 | . 1 . . . . . . . 2 1 Impact Weapon 8 | . . 1 1 . . . 1 5 . . Slashing Weapon . | . . . . . . . . . . . Piercing Weapon . | . . . . . . . . . . . Special Melee Weapon . | . . . . . . . . . . . Unidentified Prototypes 1 | . . . 1 . . . . . . . Corrupted Parts 5 | . . 2 . . . . . 3 . . System Corruption 39 | . . 13 . . . . . 26 . . Parts Lost 28 | . 1 6 1 . . . 11 5 1 3 Power 5 | . . 1 1 . . . 1 1 . 1 Propulsion 11 | . 1 3 . . . . 4 2 . 1 Utility 6 | . . . . . . . 2 2 1 1 Weapon 6 | . . 2 . . . . 4 . . . Highest Loss Streak 4 | . 1 4 1 . . . 4 2 1 3 To Critical Strikes . | . . . . . . . . . . . Average Slot Usage (%) 92 | . 99 91 97 100 81 100 95 82 99 98 Engine 8 | . 14 5 7 11 11 11 8 8 9 9 Treads 9 | . . 5 6 11 11 11 11 6 27 25 Wheel 13 | . 27 20 21 22 22 22 12 7 . . Device 15 | . 14 13 22 22 22 22 18 7 15 15 Storage 10 | . 14 14 11 11 11 11 9 9 9 9 Processor 8 | . . . . . . . 15 12 11 9 Protection 3 | . . . . . . . 1 12 . 2 Energy Gun 4 | . . 6 13 11 2 10 6 . . . Ballistic Gun 10 | . 26 12 8 11 2 10 11 8 16 9 Ballistic Cannon 1 | . . . . . . . . 5 . . Impact Weapon 1 | . . 7 . . . . . 2 1 . Naked Turns . | . . . . . . . . . . . Heaviest Build 72 | 13 15 15 25 26 56 56 62 72 59 59 Greatest Support 60 | 20 26 42 26 26 26 26 28 60 60 60 Greatest Overweight (x) 13 | . . . . . 2 2 5 13 . . Average Overweight (x) 1 | . . . . . . 2 2 1 . . Largest Inventory Capacity 20 | 8 8 8 10 10 20 20 20 20 20 20 Average Capacity 16 | 5 8 8 8 10 15 20 20 20 20 20 Most Carried 20 | 8 8 8 10 10 11 14 20 20 20 20 Average Carried 14 | 4 7 7 7 9 10 12 18 19 19 19 Final Capacity 20 | 8 8 8 10 10 20 20 20 20 20 20 Final Carried 20 | 8 7 8 10 10 11 14 20 20 20 20 Class Distribution -------------------- 67% | Scavenger-Mutant 30% | Mutant Dominant Class ---------------- Mutant | -10/Materials Mutant | -10/Mines Scavenger-Mutant | -9/Materials Mutant | -9/Mines Mutant | -9/Exiles Mutant | -8/Mines Scavenger-Mutant | -8/Materials Scavenger-Mutant | -8/Garrison Scavenger-Mutant | -8/Materials Scavenger-Mutant | -8/Garrison Resources | -11 -10 -10 -9 -9 -9 -8 -8 -8 -8 -8 ----------- Run | Jun Mat Min Mat Min Exi Min Mat Gar Mat Gar Matter Collected 3664 | 282 30 613 373 36 3 154 904 995 74 200 Remotely 314 | . . . . . . . . 314 . . Salvage Created 4763 | 73 97 79 580 36 . 79 1814 1533 368 104 Parts 276 | 10 15 . 39 4 . 9 89 82 23 5 Haulers Intercepted 5 | . . . 2 . . . 3 . . . Recyclers Shooed 4 | 1 . . 2 . . . . . 1 . Parts Field Recycled . | . . . . . . . . . . . Retrieved Matter . | . . . . . . . . . . . Parts Self-Destructed . | . . . . . . . . . . . Prevented . | . . . . . . . . . . . Kills | -11 -10 -10 -9 -9 -9 -8 -8 -8 -8 -8 ------- Run | Jun Mat Min Mat Min Exi Min Mat Gar Mat Gar Combat Hostiles Destroyed 98 | . 5 7 9 . . 5 28 38 4 2 Melee 1 | . . 1 . . . . . . . . Guns 60 | . 5 5 9 . . 3 23 10 4 1 Cannons 9 | . . . . . . . . 9 . . AOE 22 | . . . . . . 2 5 14 . 1 Classes Destroyed 17 | 1 2 2 6 1 . . 2 3 . . Worker 8 | . . . . 2 . . 6 . . . Builder 3 | . 1 . 1 . . . 1 . . . Tunneler 5 | 4 . . . . . . 1 . . . Hauler 5 | . . . 2 . . . 3 . . . Recycler 7 | . . . 1 . . . 5 . 1 . Operator 1 | . . . 1 . . . . . . . Watcher 5 | . . . 2 . . . 1 . 2 . Swarmer 32 | . 5 . 4 . . 4 9 10 . . Grunt 31 | . . . 2 . . 1 12 12 3 1 Brawler 3 | . . . . . . . . 3 . . Duelist 5 | . . . . . . . . 5 . . Sentry 16 | . . . 3 . . . 5 6 1 1 Demolisher 1 | . . 1 . . . . . . . . Specialist 2 | . . . . . . . 2 . . . Hunter 2 | . . . . . . . . 2 . . Heavy 1 | . . . . . . . 1 . . . Assembled 6 | . . 6 . . . . . . . . Best Kill Streak 7 | 4 3 4 5 2 . 2 5 7 5 1 Combat Bots Only 7 | . 3 4 3 . . 2 3 7 3 1 Max Kills in Single Turn 2 | 1 2 1 1 2 . 1 2 2 2 1 Gunslinging 1 | . 1 . . . . . 1 . . . Exploded 2 | . . . . . . 1 2 2 . 1 Melee 1 | . . 1 . . . . . . . . Uniques/NPCs Destroyed . | . . . . . . . . . . . Combat | -11 -10 -10 -9 -9 -9 -8 -8 -8 -8 -8 -------- Run | Jun Mat Min Mat Min Exi Min Mat Gar Mat Gar Damage Taken 5148 | . 193 783 331 . . 169 1764 1333 332 243 Core 907 | . 55 155 78 . . 66 309 165 49 30 Absorbed by Shields . | . . . . . . . . . . . Redirected to Shielding 19 | . . . . . . . . 19 . . Core Remaining (%) 60 | 100 . 16 . . . 64 . . . . Volleys Fired 328 | 16 16 17 44 1 . 11 107 73 31 12 Largest 2 | 2 2 2 2 2 . 2 2 2 2 2 Hottest 112 | 40 100 60 80 89 . 89 112 88 56 56 Shots Fired 571 | 32 29 28 85 2 . 15 204 109 49 18 Gun 486 | 32 26 28 85 2 . 10 199 49 42 13 Cannon 25 | . . . . . . . . 25 . . Launcher 49 | . . . . . . 5 5 35 . 4 Special 11 | . 3 . . . . . . . 7 1 Kinetic 361 | 32 26 21 37 1 . 6 109 74 42 13 Thermal 153 | . 3 7 48 1 . 4 90 . . . Explosive 16 | . . . . . . 5 5 6 . . Electromagnetic 33 | . . . . . . . . 29 . 4 Robot Hit Streak 18 | 7 8 4 15 1 . 2 18 12 11 6 Robot Miss Streak 6 | 2 4 3 4 . . 3 4 6 2 2 Penetration Max 1 | . . . . . . . 1 1 1 1 Secondary Targets 8 | . 1 1 1 . . . 4 . 1 . Max Gunslinging Chain 1 | . 1 1 1 . . . 1 . 1 . Shots Hit Robots 363 | 18 12 17 49 1 . 6 142 72 37 9 Core Hits 205 | 8 7 10 22 2 . 11 72 58 12 3 Critical Kills 1 | . . . . . . . 1 . . . Critical Parts Destroyed 2 | . . . . . . . . 1 1 . Critical Strikes 13 | . . . 3 . . . 7 2 1 . Burn 9 | . . . 3 . . . 6 . . . Destroy 3 | . . . . . . . 1 1 1 . Blast 1 | . . . . . . . . 1 . . Melee Attacks 14 | . . 4 1 . . . 1 8 . . Impact 14 | . . 4 1 . . . 1 8 . . Slashing . | . . . . . . . . . . . Piercing . | . . . . . . . . . . . Sneak Attacks . | . . . . . . . . . . . Combat Hostiles . | . . . . . . . . . . . Follow-up Attacks . | . . . . . . . . . . . Damage Inflicted 8820 | 187 169 329 675 41 . 372 3183 2717 815 332 Guns 6105 | 187 169 165 675 41 . 117 2935 734 815 267 Cannons 386 | . . . . . . . . 386 . . Explosions 2165 | . . . . . . 255 248 1597 . 65 Melee 164 | . . 164 . . . . . . . . Ramming . | . . . . . . . . . . . Kinetic 4800 | 187 169 142 298 24 . 98 1680 1120 815 267 Thermal 1691 | . . 23 377 17 . 19 1255 . . . Explosive 830 | . . . . . . 255 248 327 . . Electromagnetic 1335 | . . . . . . . . 1270 . 65 Impact 164 | . . 164 . . . . . . . . Slashing . | . . . . . . . . . . . Piercing . | . . . . . . . . . . . Highest Corruption 38 | . . 14 1 1 1 1 3 37 37 38 Average Corruption 8 | . . 1 1 1 1 1 2 9 37 37 Corruption Purged . | . . . . . . . . . . . Corruption Blocked . | . . . . . . . . . . . Effects 94 | . . 2 4 . 2 . 11 43 25 7 Message Errors 26 | . . . 1 . . . 3 12 7 3 Matter Fused 14 | . . 1 . . 1 . 2 8 2 . Heat Flow Errors 7 | . . . . . . . 1 4 2 . Energy Discharges 12 | . . . . . . . 1 7 3 1 Parts Rejected 3 | . . . 1 . . . . 1 1 . Data Loss (minor) 12 | . . 1 1 . 1 . 2 5 2 . Data Loss (major) 2 | . . . . . . . . 1 1 . Misfires 4 | . . . . . . . 1 2 . 1 Alerts 1 | . . . . . . . . . 1 . Misdirections 1 | . . . . . . . . . . 1 Weapon Failures 12 | . . . 1 . . . 1 3 6 1 Overload Shots . | . . . . . . . . . . . Overflow Damage 45 | . . 27 . . . . . 18 . . Projectiles . | . . . . . . . . . . . Explosions 18 | . . . . . . . . 18 . . Melee 27 | . . 27 . . . . . . . . Knockbacks 2 | . . 1 . . . . . 1 . . Impact 1 | . . 1 . . . . . . . . Kinetic 1 | . . . . . . . . 1 . . Secondary . | . . . . . . . . . . . Self-Inflicted Damage 337 | . . . . . . . . 314 . 23 Shots 13 | . . . . . . . . 12 . 1 Rammed . | . . . . . . . . . . . Targets Rammed . | . . . . . . . . . . . Kicked . | . . . . . . . . . . . Crushed . | . . . . . . . . . . . Highest Temperature 240 | . 70 12 73 21 . 39 184 240 231 5 Average Temperature 42 | . 33 7 20 14 . 14 46 49 68 3 Received Heat Transfer 1368 | . 72 36 84 . . 42 648 279 171 36 Siege Activations . | . . . . . . . . . . . Robots Corrupted 5 | . . . . . . . . 5 . . Combat Hostiles 5 | . . . . . . . . 5 . . Parts Fried 8 | . . . . . . . . 8 . . Impact Corruptions 1 | . . 1 . . . . . . . . Robots Melted 1 | . . . 1 . . . . . . . Combat Hostiles . | . . . . . . . . . . . Parts Melted 7 | . . . . . . . 7 . . . Heat Transferred 4446 | . . 50 1140 37 . 37 3182 . . . Parts Sabotaged . | . . . . . . . . . . . Parts Stolen . | . . . . . . . . . . . Parts Stripped . | . . . . . . . . . . . Power Chain Reactions 1 | . . . . . . . . 1 . . Missiles Intercepted . | . . . . . . . . . . . Alert | -11 -10 -10 -9 -9 -9 -8 -8 -8 -8 -8 ------- Run | Jun Mat Min Mat Min Exi Min Mat Gar Mat Gar Peak Influence 1698 | 20 205 65 340 14 . 298 552 1698 985 821 Initial 827 | . 13 65 . 4 . . 115 358 827 640 Average 532 | 9 98 43 149 9 . 188 397 1083 920 735 Maximum Alert Level 5 | . 1 . 1 . . 1 2 5 3 3 Low Security (%) 29 | 100 90 100 62 100 . 41 1 . . . Level 1 21 | . 9 . 37 . . 58 52 2 . . Level 2 19 | . . . . . . . 46 26 . 45 Level 3 14 | . . . . . . . . 17 100 54 Level 4 11 | . . . . . . . . 41 . . Level 5 3 | . . . . . . . . 12 . . High Security . | . . . . . . . . . . . Max Security . | . . . . . . . . . . . Squads Dispatched 16 | . 3 1 3 . . . 8 . 1 . Investigation 9 | . 2 1 2 . . . 4 . . . Extermination . | . . . . . . . . . . . Reinforcement 6 | . 1 . 1 . . . 4 . . . Assault . | . . . . . . . . . . . Garrison 1 | . . . . . . . . . 1 . Intercept . | . . . . . . . . . . . Searches Triggered . | . . . . . . . . . . . Construction Impeded 2 | . . . . . . . 2 . . . Haulers Reinforced . | . . . . . . . . . . . Active Scanning Responses . | . . . . . . . . . . . Cargo Convoy Interrupts . | . . . . . . . . . . . Stealth | -11 -10 -10 -9 -9 -9 -8 -8 -8 -8 -8 --------- Run | Jun Mat Min Mat Min Exi Min Mat Gar Mat Gar Distress Signals 10 | . 2 1 2 . . . 4 . 1 . Communications Jammed . | . . . . . . . . . . . Distress Signals . | . . . . . . . . . . . Times Spotted 168 | . 19 15 22 . . 10 46 44 9 3 Peak Tracking Total 9 | . 7 9 5 . . 4 5 5 6 4 Tactical Retreats 12 | . 2 3 1 . . . . 6 . . Traps | -11 -10 -10 -9 -9 -9 -8 -8 -8 -8 -8 ------- Run | Jun Mat Min Mat Min Exi Min Mat Gar Mat Gar Traps Triggered 19 | . . . . . . . 4 15 . . Indirectly 6 | . . . . . . . . 6 . . Trap Hack Attempts . | . . . . . . . . . . . Triggered . | . . . . . . . . . . . Disarmed . | . . . . . . . . . . . Reprogrammed . | . . . . . . . . . . . Reused . | . . . . . . . . . . . Traps Extracted . | . . . . . . . . . . . Installed . | . . . . . . . . . . . Triggered 1 | . . . . . . . . 1 . . Machines | -11 -10 -10 -9 -9 -9 -8 -8 -8 -8 -8 ---------- Run | Jun Mat Min Mat Min Exi Min Mat Gar Mat Gar Machines Disabled 7 | . . . 1 . . 1 1 2 . 2 Max in Single Turn 1 | . . . 1 . . 1 1 1 . 1 Garrison Relay 1 | . . . . . . . . 1 . . Phase Generator 1 | . . . . . . . . . . 1 Machines Repaired . | . . . . . . . . . . . Machines Sabotaged . | . . . . . . . . . . . Overloaded Fab Kills . | . . . . . . . . . . . Hacking | -11 -10 -10 -9 -9 -9 -8 -8 -8 -8 -8 --------- Run | Jun Mat Min Mat Min Exi Min Mat Gar Mat Gar Machines Accessed 28 | . 8 1 4 1 . . 8 4 1 1 Terminals 20 | . 6 . 4 . . . 5 4 . 1 Fabricators . | . . . . . . . . . . . Repair Stations . | . . . . . . . . . . . Recycling Units 4 | . 2 . . . . . 2 . . . Scanalyzers . | . . . . . . . . . . . Garrison Access 2 | . . . . . . . 1 . 1 . Total Hacks 92 | . 40 1 18 1 . . 19 9 1 3 Successful 44 | . 21 1 8 1 . . 11 1 1 . Failed 46 | . 18 . 9 . . . 8 8 . 3 Catastrophic 5 | . . . 1 . . . 1 3 . . Database Lockouts 2 | . 1 . 1 . . . . . . . Manual 58 | . 31 . 16 . . . 11 . . . Terminals 82 | . 37 . 18 . . . 15 9 . 3 Fabricators . | . . . . . . . . . . . Repair Stations . | . . . . . . . . . . . Recycling Units 5 | . 3 . . . . . 2 . . . Scanalyzers . | . . . . . . . . . . . Garrison Access 3 | . . . . . . . 2 . 1 . Terminal Hacks 21 | . 11 1 5 1 . . 2 1 . . Robot Analysis 4 | . 2 . 2 . . . . . . . Prototype ID Bank 2 | . 1 . 1 . . . . . . . Open Door 2 | . . 1 . 1 . . . . . . Branch Access Points 1 | . 1 . . . . . . . . . Emergency Access Points 1 | . . . . . . . . 1 . . Terminal Index 2 | . 1 . 1 . . . . . . . Unreport Threat 3 | . 1 . 1 . . . 1 . . . Locate Traps 3 | . 2 . . . . . 1 . . . Recall Reinforcements 1 | . 1 . . . . . . . . . Hauler Manifests 1 | . 1 . . . . . . . . . Zone Layout 1 | . 1 . . . . . . . . . Fabricator Hacks . | . . . . . . . . . . . Repair Station Hacks . | . . . . . . . . . . . Recycling Unit Hacks . | . . . . . . . . . . . Scanalyzer . | . . . . . . . . . . . Garrison Access Hacks 2 | . . . . . . . 1 . 1 . Unlock Access 2 | . . . . . . . 1 . 1 . Unauthorized Hacks 21 | . 10 . 3 . . . 8 . . . Terminals 17 | . 8 . 3 . . . 6 . . . Track 10 | . 4 . 2 . . . 4 . . . Assimilate 1 | . 1 . . . . . . . . . Botnet 5 | . 2 . 1 . . . 2 . . . Operators 1 | . 1 . . . . . . . . . Fabricators . | . . . . . . . . . . . Repair Stations . | . . . . . . . . . . . Recycling Units 4 | . 2 . . . . . 2 . . . Recyclers 1 | . . . . . . . 1 . . . Tunnel 3 | . 2 . . . . . 1 . . . Scanalyzers . | . . . . . . . . . . . Garrison Access . | . . . . . . . . . . . Data Cores Recovered 1 | . . . 1 . . . . . . . Used 1 | . . . 1 . . . . . . . Hacking Detections 21 | . 6 . 4 . . . 5 4 1 1 Full Trace Events 6 | . . . 2 . . . 1 2 . 1 Feedback Events 1 | . . . 1 . . . . . . . Corruption 1 | . . . 1 . . . . . . . Feedback Blocked . | . . . . . . . . . . . Robot Schematics Acquired . | . . . . . . . . . . . Robots Built . | . . . . . . . . . . . Authchips . | . . . . . . . . . . . Time . | . . . . . . . . . . . Total Robot Build Rating . | . . . . . . . . . . . Part Schematics Acquired . | . . . . . . . . . . . Parts Built . | . . . . . . . . . . . Authchips . | . . . . . . . . . . . Time . | . . . . . . . . . . . Total Part Build Rating . | . . . . . . . . . . . Parts Repaired . | . . . . . . . . . . . Time . | . . . . . . . . . . . Parts Recycled . | . . . . . . . . . . . Recycled Matter . | . . . . . . . . . . . Retrieved Matter . | . . . . . . . . . . . Retrieved Components . | . . . . . . . . . . . Parts Scanalyzed . | . . . . . . . . . . . Part Schematics Acquired . | . . . . . . . . . . . Parts Damaged . | . . . . . . . . . . . Bothacking | -11 -10 -10 -9 -9 -9 -8 -8 -8 -8 -8 ------------ Run | Jun Mat Min Mat Min Exi Min Mat Gar Mat Gar Used RIF Installer 1 | . . . . . . . . 1 . . Robots Hacked 4 | . . . . . . . . . 3 1 Non-combat . | . . . . . . . . . . . Combat 4 | . . . . . . . . . 3 1 Robot Hacks Applied 6 | . . . . . . . . . 5 1 find_garrison 1 | . . . . . . . . . 1 . scatter_targeting 1 | . . . . . . . . . 1 . link_complan 1 | . . . . . . . . . 1 . disrupt_area 1 | . . . . . . . . . 1 . overwrite_iff 2 | . . . . . . . . . 1 1 Relay Couplers Released 3 | . . . . . . . . 3 . . Machine Destruction 3 | . . . . . . . . 3 . . Attached 1 | . . . . . . . . . 1 . Fabnet Peak Effective % . | . . . . . . . . . . . Robots Rewired . | . . . . . . . . . . . Allies Hacked . | . . . . . . . . . . . Hacks Repelled . | . . . . . . . . . . . Allies | -11 -10 -10 -9 -9 -9 -8 -8 -8 -8 -8 -------- Run | Jun Mat Min Mat Min Exi Min Mat Gar Mat Gar Total Allies 6 | . 1 . . 3 . . . . 1 1 Largest Group 3 | . 1 . . 3 3 3 3 . 1 1 Highest-Rated Group 40 | . 10 . . 40 40 40 40 . 16 16 Highest-Rated Ally 16 | . 10 . . 16 16 16 16 . 16 16 Total Orders . | . . . . . . . . . . . Ally Attacks 48 | . . . . . . 20 15 . 5 8 Total Damage 441 | . . . . . . 183 122 . 76 60 Kills 7 | . . . . . . 5 1 . 1 . Allies Corrupted . | . . . . . . . . . . . Allies Melted . | . . . . . . . . . . . Intel | -11 -10 -10 -9 -9 -9 -8 -8 -8 -8 -8 ------- Run | Jun Mat Min Mat Min Exi Min Mat Gar Mat Gar Robot Analysis Total 4 | . 2 . 2 . . . . . . . Derelict Logs Recovered 4 | . . 2 . 2 . . . . . . Drone Launches . | . . . . . . . . . . . Drone Recoveries . | . . . . . . . . . . . Exploration | -11 -10 -10 -9 -9 -9 -8 -8 -8 -8 -8 ------------- Run | Jun Mat Min Mat Min Exi Min Mat Gar Mat Gar Turns Passed 5098 | 108 297 441 520 153 249 263 1195 1388 377 107 Spaces Moved 3203 | 53 279 363 359 149 242 188 585 774 169 42 Core 41 | 40 . . . . . . . 1 . . Treads 313 | . . 31 . . . . . 71 169 42 Legs . | . . . . . . . . . . . Wheels 2849 | 13 279 332 359 149 242 188 585 702 . . Hover . | . . . . . . . . . . . Flight . | . . . . . . . . . . . Fastest Speed 50 | 50 80 90 90 90 90 120 110 130 160 160 Average Speed 113 | 57 80 96 90 90 98 120 126 134 160 160 Slowest Speed 700 | 80 90 160 100 90 120 120 155 700 160 160 Overloaded Moves . | . . . . . . . . . . . Propulsion Burnouts . | . . . . . . . . . . . Robots Hopped . | . . . . . . . . . . . Cave-ins Triggered 1 | . . . . . . . . 1 . . Exploration Rate (%) 50 | 4 61 80 38 53 56 71 78 77 20 13 Regions Visited 10 Branch Regions 4 Pre-discovered Areas 3 | . 2 . . . . . 1 . . . Known Exits Taken 3 | . 1 . . . . . 1 . 1 . Unknown Exits Taken 6 | 1 . 1 1 1 1 1 . . . . Scrap Searched 1 | . . . . . . 1 . . . . Spaces Dug 5 | . 3 . 1 . . . 1 . . . Terrain Destroyed 189 | . 3 . 1 . . 18 46 37 2 82 Melee 2 | . . . 1 . . . 1 . . . Projectile 10 | . 3 . . . . . 4 1 2 . AOE 177 | . . . . . . 18 41 36 . 82 Terrain Rammed . | . . . . . . . . . . . Walls Destroyed . | . . . . . . . . . . . Machines Disabled . | . . . . . . . . . . . Actions | -11 -10 -10 -9 -9 -9 -8 -8 -8 -8 -8 --------- Run | Jun Mat Min Mat Min Exi Min Mat Gar Mat Gar Total 4031 | 99 317 415 468 167 253 207 830 990 223 62 Wait 99 | 11 3 1 14 11 5 . 29 15 10 . Move 3192 | 52 278 362 358 148 241 187 584 772 168 42 Hop . | . . . . . . . . . . . Pick Up 73 | 10 4 6 10 1 1 3 26 8 3 1 Fast Attach 41 | 6 2 3 5 1 2 . 9 12 1 . Attach 35 | 2 2 5 5 . . . 13 6 2 . Detach 14 | . . 2 3 1 . . 5 2 1 . Swap 108 | . 6 12 16 1 1 6 33 22 5 6 Drop 66 | 2 6 3 12 3 3 . 23 11 2 1 Fire 328 | 16 16 17 44 1 . 11 107 73 31 12 Melee 14 | . . 4 1 . . . 1 8 . . Ram . | . . . . . . . . . . . Kick . | . . . . . . . . . . . Crush . | . . . . . . . . . . . Escape Stasis 61 | . . . . . . . . 61 . . Rewire . | . . . . . . . . . . . Trap . | . . . . . . . . . . . Miscellaneous . | . . . . . . . . . . . Route ------- -11/Junkyard -10/Materials (discovered 4 exits: *Mat x2 / *Min x2) -10/Mines -9/Materials (discovered 2 exits: *Min / *Sto) -9/Mines (discovered 3 exits: *Mat x2 / [*Exi]) -9/Exiles -8/Mines -8/Materials (discovered 3 exits: [*Fac x2] / Gar) -8/Garrison (discovered 2 exits: *Mat x2) -8/Materials -8/Garrison History --------- Turn | Location | Event 12 | -11/Junkyard | Discovered new exit (range 15) 109 | -11/Junkyard | Entered Materials 142 | -10/Materials | Central database locked down 150 | -10/Materials | Identified exit to Mines 175 | -10/Materials | Discovered new exit (range 15) 311 | -10/Materials | Build established: Mutant 381 | -10/Materials | Discovered new exit (range 8) 406 | -10/Materials | Entered Mines 431 | -10/Mines | Learned 2 Materials zone layouts 473 | -10/Mines | Learned Materials security intel 477 | -10/Mines | Met a Derelict shopkeep closing up shop 508 | -10/Mines | Assembled infested the area 513 | -10/Mines | Assisted by a Guerilla fighting off Assembled 571 | -10/Mines | Core integrity fell below 50% 666 | -10/Mines | Lost 4 parts (3n1w) 670 | -10/Mines | Core integrity fell below 20% 814 | -10/Mines | Discovered new exit (range 8) 827 | -10/Mines | System corruption reached 10% 847 | -10/Mines | Entered Materials 847 | -9/Materials | Evolved 2 slots: Propulsion x1, Utility x1 872 | -9/Materials | Discovered new exit (range 7) 1123 | -9/Materials | Build established: Scavenger-Mutant 1153 | -9/Materials | Identified exit to Storage 1349 | -9/Materials | Discovered new exit (range 14) 1353 | -9/Materials | Central database locked down 1367 | -9/Materials | Entered Mines 1368 | -9/Mines | Assisted by bots powering up and referring to "LRC-V3" 1377 | -9/Mines | Learned Materials terminal intel 1377 | -9/Mines | Discovered new exit (range 7) 1405 | -9/Mines | A weapon hastily lodged in a ceiling crevice suddenly fell to the ground 1423 | -9/Mines | Discovered new exit (range 13) 1428 | -9/Mines | Found the Drone Emporium 1473 | -9/Mines | Learned Materials stockpile data 1474 | -9/Mines | YI-UF0 nonchalantly dropped a Grenade Launcher on the ground 1505 | -9/Mines | Deemed a non-threat by the Exiles lab entrance 1505 | -9/Mines | Discovered new exit (range 5) 1520 | -9/Mines | Entered Exiles 1520 | -9/Exiles | Accompanied by 3 allies 1532 | -9/Exiles | Discovered new exit (range 15) 1543 | -9/Exiles | Met 8R-AWN 1558 | -9/Exiles | Met EX-HEX 1603 | -9/Exiles | Met EX-DEC 1622 | -9/Exiles | Build established: Mutant 1769 | -9/Exiles | Entered Mines 1769 | -8/Mines | Accompanied by 3 allies 2021 | -8/Mines | Discovered new exit (range 5) 2032 | -8/Mines | Entered Materials 2032 | -8/Materials | Accompanied by 3 allies 2032 | -8/Materials | Evolved 2 slots: Utility x2 2034 | -8/Materials | Loaded intel: 11 terminal locations 2152 | -8/Materials | Lost 3 parts (2n1w) 2262 | -8/Materials | Lost 4 parts (2n2u) 2328 | -8/Materials | Found Prototype Device 2330 | -8/Materials | Build established: Scavenger-Mutant 2659 | -8/Materials | Discovered new exit (range 11) 2907 | -8/Materials | Discovered new exit (range 11) 3153 | -8/Materials | Core integrity fell below 50% 3226 | -8/Materials | Identified exit to Garrison 3227 | -8/Materials | Entered Garrison 3258 | -8/Garrison | Triggered checkpoint 3396 | -8/Garrison | Triggered checkpoint 3410 | -8/Garrison | Triggered checkpoint 3415 | -8/Garrison | Triggered checkpoint 3468 | -8/Garrison | Triggered checkpoint 3635 | -8/Garrison | Triggered checkpoint 3673 | -8/Garrison | Destroyed 7 combat bots 3704 | -8/Garrison | Triggered checkpoint 3779 | -8/Garrison | Crushed by falling debris 3864 | -8/Garrison | Triggered checkpoint 3960 | -8/Garrison | Installed Relay Interface Framework 3985 | -8/Garrison | Discovered new exit (range 12) 3996 | -8/Garrison | Core integrity fell below 20% 4228 | -8/Garrison | Garrison Relay disabled 4342 | -8/Garrison | Triggered checkpoint 4356 | -8/Garrison | Discovered new exit (range 18) 4368 | -8/Garrison | Triggered checkpoint 4428 | -8/Garrison | System corruption reached 10% 4481 | -8/Garrison | System corruption reached 30% 4612 | -8/Garrison | Identified exit to Materials 4615 | -8/Garrison | Entered Materials 4916 | -8/Materials | Garrison activated, responded to threat 4991 | -8/Materials | Identified exit to Garrison 4992 | -8/Materials | Entered Garrison 5047 | -8/Garrison | Phase Generator disabled 5082 | -8/Garrison | Triggered checkpoint 5099 | -8/Garrison | Destroyed by P-60 Hacker with Shock Rifle Last Messages --------------- 05041_ G-47 Trooper destroyed. 05043_ Dropped Hcp. Matter Pod. 05044_ Extracted 200 matter. 05044_ Acquired Hcp. Matter Pod. 05049_ The unstable cave ceiling collapses. 05059_ System corrupted: Energy discharge (-50). 05065_ The unstable cave ceiling collapses. 05077_ Lgt. Treads destroyed. 05077_ Jacked G-47 Trooper... >>overwrite_iff Rewriting IFF filter. 05080_ MAA|HJTKG K EDM2V 05099_ Imp. Ion Engine destroyed. Map ----- +----------------------------------------------------+ | | | | | | | ?????????????????????????????????????????????????? | | ?????????????????????????????????????????????????? | | ?????????????????????????????????????????????????? | | ?????????????????????????????????????????????????? | | ?????????????????????????????????????????????????? | | ?????????????????????????????????????????????????? | | ?????????????????????????????????????????????????? | | ?????????????????????????????????????????????????? | | ?????????????????????????????????????????????????? | | ?????????????????????????????????????????????????? | | ?????????????????????????????????????????????????? | | ??????????????#####??????????????????????????????? | | ??????????##### ###????????????????????????????? | | ?????????## ##???????????????????????????? | | ????????## # # ##??????????????????????????? | | ????????# #??????????????????????????? | | ???????## ##?????????????????????????? | | ???????# #?????????????????????????? | | ????????# ##?????????????????????????? | | ????????# #?????????????????????????? | | ????????# #?????????????????????????? | | ??####### #######?????????????????????? | | " [ = @ #?????????????????????? | | ??##### # # ##### #?????????????????????? | | ??????# ### # ##???g#?????????????????????? | | ??????# #?# # ##????? ?????????????????????? | | ??????# ######### ###?????? #????????????????????? | | ??????# ##"T"#??###????????? ????????????????????? | | ??????# "#?????????????? ???????????????????? | | ??????# ######???????????????#???????????????????? | | ?????##/##???????????????????????????????????????? | | ?????# #???????????????????????????????????????? | | ?????# ############ #####?????????????????????? | | ?????# ????????????????????? | | ?????# ????????????????????? | | ?????# ????????????????????? | | ?????###################?????????????????????????? | | ?????????????????????????????????????????????????? | | ?????????????????????????????????????????????????? | | ?????????????????????????????????????????????????? | | ?????????????????????????????????????????????????? | | ?????????????????????????????????????????????????? | | ?????????????????????????????????????????????????? | | ?????????????????????????????????????????????????? | | ?????????????????????????????????????????????????? | | ?????????????????????????????????????????????????? | | ?????????????????????????????????????????????????? | +----------------------------------------------------+ Best States ------------- Heat Dissipation 83 Energy Generation 16 Energy Capacity 290 Matter Stores 300 Matter Capacity 300 Sight Range 20 Robot Scan Range 15 Terrain Scan Range 16 Terrain Scan Density 10 Armor Coverage 150 Core Shielding 20 Evasion (%) 50 Targeting Accuracy 8 Recoil Reduction 3 Relay Coupler Types 1 Relay Coupler Value 31 Item Schematics ----------------- None Robot Schematics ------------------ None Fabricated ------------ Nothing Alien Tech Used ----------------- None Achievements -------------- None Challenges ------------ None Game ------ Seed GunColdFragment Manual? 0 Play Time 01:15:16 Cumulative 973.7 hours Start 2023.09.03 @ 17:37:14 End 2023.09.03 @ 19:03:45 Sessions 1 Manual Loads 0 Difficulty Rogue Special Mode None Game No. 506 Rogue 379 Adventurer 125 Explorer 2 Win Type - Total 114 Types 89/9/8/2/3/0/0/2/1 Lore% 82 Gallery% 89 Achievement% 83 Wizard Run 0 Options --------- ASCII 0 Keyboard 1 Movement Numpad Keybinds 0 Fullscreen 1 Font 36/TerminusFine Map View 83x50 Tactical HUD 1 Map Filters NONE Filters NONE Steam 1 RUN: a686d0f4-a0cf-436d-b58d-aee7dd33491b